fUSD/lending_fUSD_20260205
["ID","MTS","AMOUNT","RATE_DAILY","PERIOD"]
[404569015,1770303043037,-25000.0,0.00017856,3]
[404569016,1770303043046,-197.52,0.00017856,2]
[404569017,1770303043056,-500.0,0.00017856,2]
[404569018,1770303043066,-500.0,0.00017856,2]
[404569019,1770303043075,-200.0,0.00017856,2]
[404569020,1770303043085,-200.0,0.00017856,2]
[404569021,1770303043095,-393.0,0.00017862,2]
[404569022,1770303043104,-436.0,0.00017863,2]
[404569023,1770303043114,-25000.0,0.00017865,3]
[404569024,1770303043123,-233.22924952,0.00017868,2]
[404569025,1770303043133,-171.90669662,0.0001787,2]
[404569026,1770303043143,-151.0,0.00017871,2]
[404569027,1770303043153,-25000.0,0.00017874,3]
[404569028,1770303043163,-172.07820883,0.00017881,2]
[404569029,1770303043173,-5609.0,0.00017882,2]
[404569030,1770303043183,-25000.0,0.00017882,3]
[404569031,1770303043193,-378.0,0.00017885,2]
[404569032,1770303043202,-25000.0,0.00017891,3]
[404569033,1770303043212,-500.0,0.000179,2]
[404569034,1770303043222,-160.0,0.000179,3]
[404569035,1770303043232,-25000.0,0.000179,3]
[404569036,1770303043242,-160.0,0.000179,3]
[404569037,1770303043252,-17205.90121961,0.000179,3]
[404569038,1770303043262,-224.87882487,0.000179,3]
[404569039,1770303043272,-427.20159573,0.000179,2]
[404569040,1770303043282,-171.90669662,0.000179,2]
[404569041,1770303043292,-14568.7958752,0.000179,2]
[404569042,1770303043302,-172.17990429,0.000179,2]
[404569043,1770303043311,-25000.0,0.000179,3]
[404569044,1770303043321,-1191.06017664,0.000179,2]
[404569045,1770303043332,-3106.92025638,0.000179,2]
[404569046,1770303043341,-1117.70909174,0.000179,2]
[404569047,1770303043351,-3476.56855011,0.000179,2]
[404569048,1770303043362,-411.07033882,0.000179,2]
[404569049,1770303043372,-436.0,0.00017918,2]
[404569050,1770303043381,-200.14022521,0.00017937,2]
[404569051,1770303043391,-378.0,0.0001797,2]
[404569052,1770303043403,-436.0,0.00017972,2]
[404569053,1770303043413,-500.0,0.00017973,2]
[404569054,1770303043423,-500.0,0.00017973,2]
[404569055,1770303043432,-309.44398841,0.00017973,2]
[404569056,1770303043442,-500.0,0.00017973,2]
[404569057,1770303043451,-500.0,0.00017973,2]
[404569058,1770303043461,-500.0,0.00017973,2]
[404569059,1770303043471,-500.0,0.00017973,2]
[404569060,1770303043480,-500.0,0.00017973,2]
[404569061,1770303043490,-500.0,0.00017973,2]
[404569062,1770303043499,-500.0,0.00017973,2]
[404569063,1770303043509,-200.12188114,0.00017973,2]
[404569064,1770303043519,-500.0,0.00017973,2]
[404569065,1770303043528,-561.5530591,0.00017973,2]
[404569066,1770303043540,-500.0,0.00017973,2]
[404569067,1770303043551,-500.0,0.00017973,2]
[404569068,1770303043560,-500.0,0.00017973,2]
[404569069,1770303043760,-500.0,0.00017973,2]
[404569070,1770303043781,-500.0,0.00017973,2]
[404569071,1770303043792,-160.11845722,0.00017973,2]
[404569072,1770303043802,-500.0,0.00017973,2]
[404569073,1770303043812,-500.0,0.00017973,2]
[404569074,1770303043821,-500.0,0.00017973,2]
[404569075,1770303043831,-500.0,0.00017973,2]
[404569076,1770303043841,-500.0,0.00017973,2]
[404569077,1770303043850,-210.67332511,0.00017973,2]
[404569078,1770303043859,-500.0,0.00017973,2]
[404569079,1770303043869,-500.0,0.00017973,2]
[404569080,1770303043879,-500.0,0.00017973,2]
[404569081,1770303043889,-500.0,0.00017973,2]
[404569082,1770303043903,-500.0,0.00017973,2]
[404569083,1770303043913,-500.0,0.00017973,2]
[404569084,1770303043922,-500.0,0.00017973,2]
[404569085,1770303043931,-500.0,0.00017973,2]
[404569086,1770303043940,-500.0,0.00017973,2]
[404569087,1770303043949,-500.0,0.00017973,2]
[404569088,1770303043959,-520.97702983,0.00017973,2]
[404569089,1770303043968,-500.0,0.00017973,2]
[404569090,1770303043978,-500.0,0.00017973,2]
[404569091,1770303043987,-500.0,0.00017973,2]
[404569092,1770303043996,-502.08032841,0.00017973,2]
[404569093,1770303044005,-500.0,0.00017973,2]
[404569094,1770303044015,-500.0,0.00017973,2]
[404569095,1770303044024,-500.0,0.00017973,2]
[404569096,1770303044034,-500.0,0.00017973,2]
[404569097,1770303044043,-500.0,0.00017973,2]
[404569098,1770303044053,-1000.0,0.00017982,2]
[404569099,1770303044062,-1000.0,0.00017982,2]
[404569100,1770303044071,-1000.0,0.00017982,2]
[404569102,1770303044080,-1000.0,0.00017982,2]
[404569104,1770303044089,-1000.0,0.00017982,2]
[404569105,1770303044098,-1000.0,0.00017982,2]
[404569106,1770303044107,-1000.0,0.00017982,2]
[404569107,1770303044117,-1000.0,0.00017982,2]
[404569108,1770303044126,-1000.0,0.00017982,2]
[404569109,1770303044135,-1000.0,0.00017982,2]
[404569110,1770303044145,-1000.0,0.00017982,2]
[404569111,1770303044155,-506.851,0.00017982,2]
[404569112,1770303044164,-117807.58644161,0.0001799,3]
[404569113,1770303044173,-35113.88286834,0.0001799,2]
[404569114,1770303044183,-151.0,0.0001799,2]
[404569115,1770303044193,-386.007616,0.0001799,2]
[404569116,1770303044202,-386.007616,0.0001799,2]
[404569117,1770303044212,-386.007616,0.0001799,2]
[404569118,1770303044221,-386.007616,0.0001799,2]
[404569119,1770303044231,-151.0,0.00017997,2]
[404569120,1770303044241,-1079.09605253,0.00017999,5]
[404569121,1770303044251,-1079.09605253,0.00017999,5]
[404569122,1770303044260,-1079.09605253,0.00017999,5]
[404569123,1770303044270,-1079.09605252,0.00017999,5]
[404569124,1770303044279,-155.787,0.00017999,2]
[404569126,1770303044289,-300.0,0.00017999,2]
[404569128,1770303044298,-666.0,0.00017999,2]
[404569129,1770303044308,-305.85808466,0.00017999,2]
[404569130,1770303044319,-300.0,0.00017999,2]
[404569131,1770303044328,-666.0,0.00017999,2]
[404569132,1770303044338,-300.0,0.00017999,2]
[404569133,1770303044348,-1010.8044,0.00017999,2]
[404569134,1770303044359,-300.0,0.00017999,2]
[404569135,1770303044368,-778.44145262,0.00017999,2]
[404569136,1770303044378,-150.0,0.00017999,2]
[404569137,1770303044388,-150.0,0.00017999,2]
[404569138,1770303044398,-231.00018382,0.00017999,2]
[404569139,1770303044408,-300.0,0.00017999,2]
[404569140,1770303044418,-1000.0,0.00017999,2]
[404569141,1770303044427,-256.366,0.00017999,2]
[404569142,1770303044437,-501214.33073445,0.00018,2]
[404569143,1770303044453,-3336.62340853,0.00018,2]
[404569144,1770303044464,-7041.7,0.00018,2]
[404569145,1770303045106,-151.0,0.00017774,2]
[404569146,1770303045115,-546.61051547,0.00017808,2]
[404569147,1770303045125,-5635.41036109,0.00018,2]
[404569148,1770303045145,-3063.04485664,0.00018,2]
[404569149,1770303045588,-268.07504093,0.00017677,2]
[404569153,1770303046421,-2050.0,0.00017677,2]
[404569154,1770303046466,-148.91995907,0.00017677,2]
[404569155,1770303046475,-8694.25641064,0.00018,2]
[404569156,1770303046599,-486.67791843,0.00018,2]
[404569157,1770303046611,-403200.81694169,0.00018,2]
[404569158,1770303046623,-282.992,0.00018,2]
[404569170,1770303220416,-2417.0707,0.00010189,2]
[404569171,1770303220445,-160.0,0.0001501,2]
[404569172,1770303220473,-152.01739561,0.00015275,2]
[404569173,1770303260093,150.19258028,0.00015275,2]
[404569174,1770303273074,152.01739562,0.00015275,2]
[404569175,1770303273407,500.0,0.00015595,2]
[404569176,1770303273459,500.0,0.00015595,2]
[404569177,1770303273663,500.0,0.00015595,2]
[404569178,1770303273711,500.0,0.00015595,2]
[404569179,1770303273783,329.18542427,0.00015595,2]
[404569180,1770303301610,300.0,0.00015595,2]
[404569181,1770303302577,978.0,0.00015595,2]
[404569182,1770303315945,151.0,0.00015593,2]
[404569184,1770303342897,481.43840861,0.00015496,2]
[404569185,1770303342921,116.38108109,0.00015496,2]
[404569188,1770303361748,300.0,0.00015595,2]
[404569192,1770303387094,-160.0,0.00015596,2]
[404569193,1770303387282,-4721.79511013,0.00015596,2]
[404569194,1770303387331,-10000.01,0.00015596,2]
[404569195,1770303387362,-10000.01,0.00015596,2]
[404569196,1770303387515,-10000.01,0.00015596,2]
[404569197,1770303387639,-10000.01,0.00015596,2]
[404569198,1770303387767,-10000.01,0.00015596,2]
[404569199,1770303387896,-10000.01,0.00015596,2]
[404569200,1770303388014,-10000.01,0.00015596,2]
[404569201,1770303388148,-10000.01,0.00015596,2]
[404569202,1770303388252,-10000.01,0.00015596,2]
[404569203,1770303388421,-10000.01,0.00015596,2]
[404569204,1770303388557,-10000.01,0.00015596,2]
[404569205,1770303388705,-10000.01,0.00015596,2]
[404569206,1770303393086,-10000.01,0.00015596,2]
[404569207,1770303407898,2500.0,0.00015496,2]
[404569209,1770303429744,151.0,0.00015593,2]
[404569240,1770303481417,300.0,0.00015595,2]
[404569241,1770303507754,498.1829081,0.0001552,2]
[404569244,1770303535961,6550.8270919,0.00015496,2]
[404569245,1770303535992,10000.01,0.00015496,2]
[404569246,1770303536024,10000.01,0.00015496,2]
[404569247,1770303536055,10000.01,0.00015496,2]
[404569248,1770303536084,10000.01,0.00015496,2]
[404569249,1770303536112,10000.01,0.00015496,2]
[404569250,1770303536141,10000.01,0.00015496,2]
[404569251,1770303536170,10000.01,0.00015496,2]
[404569252,1770303536198,10000.01,0.00015496,2]
[404569253,1770303536227,10000.01,0.00015496,2]
[404569254,1770303541130,-10000.01,0.00015496,2]
[404569255,1770303553706,151.0,0.00015493,2]
[404569257,1770303590197,960.39412543,0.00015396,2]
[404569270,1770303669526,151.0,0.00015493,2]
[404569271,1770303691690,500.0,0.000146,2]
[404569272,1770303691739,500.0,0.00015148,2]
[404569273,1770303692440,152.01739561,0.00015308,2]
[404569274,1770303693108,6175.729,0.00015186,2]
[404569275,1770303693153,562.659,0.00015186,2]
[404569277,1770303713224,847.21047896,0.00015396,2]
[404569278,1770303713252,1610.87575457,0.00015396,2]
[404569279,1770303722467,195.61935497,0.00015396,2]
[404569280,1770303723049,300.0,0.00015495,2]
[404569281,1770303781473,1322.66464509,0.00015396,2]
[404569282,1770303782230,300.0,0.00015495,2]
[404569283,1770303783187,300.0,0.00015495,2]
[404569284,1770303794816,151.0,0.00015493,2]
[404569286,1770303831382,-2500.0,0.00015496,2]
[404569287,1770303831411,-267.6807,0.00015496,2]
[404569288,1770303831440,-343.0456,0.00015496,2]
[404569289,1770303831658,-3778.5574,0.00015496,2]
[404569290,1770303831689,-1178.18287973,0.00015508,2]
[404569291,1770303831852,-86.52944054,0.00015508,2]
[404569292,1770303831888,-600.0,0.00015521,2]
[404569293,1770303831946,-600.0,0.00015546,2]
[404569294,1770303831995,-160.0,0.00015596,2]
[404569295,1770303832047,-151.0,0.00015596,2]
[404569296,1770303832101,-409.9578866,0.00015596,2]
[404569297,1770303832151,-409.9578866,0.00015596,2]
[404569298,1770303832195,-151.0,0.00015596,2]
[404569299,1770303832240,-2405.033339,0.00015674,2]
[404569301,1770303833053,-9737.98998043,0.00015496,2]
[404569302,1770303833094,-10000.01,0.00015496,2]
[404569303,1770303833200,-10000.01,0.00015496,2]
[404569304,1770303835336,-10000.01,0.00015496,2]
[404569305,1770303835359,-10000.01,0.00015496,2]
[404569306,1770303835396,-10000.01,0.00015496,2]
[404569308,1770303847230,500.0,0.000146,2]
[404569314,1770303869577,188.17333529,0.00015474,2]
[404569315,1770303880987,517.82004274,0.00015396,2]
[404569316,1770303886672,620.7552,0.00015396,2]
[404569318,1770303899773,496.27507361,0.00015396,2]
[404569319,1770303902271,300.0,0.00015495,2]
[404569320,1770303902305,300.0,0.00015495,2]
[404569321,1770303902339,1200.0,0.00015495,2]
[404569322,1770303902519,300.0,0.00015495,2]
[404569324,1770303912702,151.0,0.00015493,2]
[404569325,1770303920628,5425.98634836,0.00015396,2]
[404569326,1770303920654,8749.65571756,0.00015396,2]
[404569327,1770303930372,679.75269655,0.00021,30]
[404569330,1770303962050,415.1524234,0.00015396,2]
[404569331,1770303964629,169.4141922,0.00015396,2]
[404569333,1770303988869,355.40591808,0.00015396,2]
[404569334,1770303999132,-160.0,0.00015496,2]
[404569335,1770303999162,-5049.05512949,0.00015496,2]
[404569337,1770304002222,310.38174876,0.00015396,2]
[404569338,1770304002246,34.83161306,0.00015396,2]
[404569339,1770304006153,234.69917683,0.00015495,2]
[404569340,1770304006195,750.41791526,0.00015495,2]
[404569341,1770304006237,750.41791526,0.00015495,2]
[404569342,1770304006279,750.41791526,0.00015495,2]
[404569343,1770304006328,750.41791526,0.00015495,2]
[404569344,1770304006383,750.41791526,0.00015495,2]
[404569345,1770304006440,750.41791526,0.00015495,2]
[404569346,1770304006528,750.41791526,0.00015495,2]
[404569347,1770304006570,750.41791526,0.00015495,2]
[404569348,1770304006611,750.41791526,0.00015495,2]
[404569349,1770304006659,750.41791526,0.00015495,2]
[404569350,1770304006698,750.41791526,0.00015495,2]
[404569351,1770304006747,750.41791526,0.00015495,2]
[404569352,1770304006780,725.46422699,0.00015495,2]
[404569353,1770304006810,24.95368827,0.00015495,2]
[404569354,1770304006855,750.41791526,0.00015495,2]
[404569355,1770304007209,750.41791526,0.00015495,2]
[404569356,1770304007252,750.41791526,0.00015495,2]
[404569357,1770304007292,750.41791526,0.00015495,2]
[404569358,1770304007336,750.41791526,0.00015495,2]
[404569359,1770304007409,750.41791526,0.00015495,2]
[404569360,1770304007450,750.41791526,0.00015495,2]
[404569361,1770304007512,750.41791526,0.00015495,2]
[404569362,1770304007637,750.41791526,0.00015495,2]
[404569363,1770304007675,750.41791526,0.00015495,2]
[404569364,1770304007710,750.41791526,0.00015495,2]
[404569365,1770304007748,750.41791526,0.00015495,2]
[404569366,1770304007785,750.41791526,0.00015495,2]
[404569367,1770304007828,219.62341335,0.00015495,2]
[404569368,1770304007855,530.79450191,0.00015495,2]
[404569369,1770304007916,750.41791526,0.00015495,2]
[404569370,1770304007960,750.41791526,0.00015495,2]
[404569371,1770304007994,750.41791526,0.00015495,2]
[404569372,1770304008051,750.41791526,0.00015495,2]
[404569373,1770304008100,750.41791526,0.00015495,2]
[404569374,1770304008144,750.41791526,0.00015495,2]
[404569375,1770304008185,750.41791526,0.00015495,2]
[404569376,1770304008220,750.41791526,0.00015495,2]
[404569377,1770304008259,750.41791526,0.00015495,2]
[404569378,1770304008298,750.41791526,0.00015495,2]
[404569379,1770304008332,750.41791526,0.00015495,2]
[404569380,1770304008371,750.41791526,0.00015495,2]
[404569381,1770304008416,464.20051497,0.00015495,2]
[404569382,1770304008443,286.21740029,0.00015495,2]
[404569383,1770304008477,750.41791526,0.00015495,2]
[404569384,1770304008513,750.41791526,0.00015495,2]
[404569385,1770304008554,750.41791526,0.00015495,2]
[404569386,1770304008589,750.41791526,0.00015495,2]
[404569387,1770304008659,750.41791526,0.00015495,2]
[404569388,1770304008697,750.41791526,0.00015495,2]
[404569389,1770304008733,750.41791526,0.00015495,2]
[404569390,1770304008775,750.41791526,0.00015495,2]
[404569391,1770304008818,750.41791526,0.00015495,2]
[404569392,1770304008858,750.41791526,0.00015495,2]
[404569393,1770304008911,750.41791526,0.00015495,2]
[404569394,1770304008946,750.41791526,0.00015495,2]
[404569395,1770304008989,708.77761659,0.00015495,2]
[404569396,1770304009017,41.64029867,0.00015495,2]
[404569397,1770304009055,750.41791526,0.00015495,2]
[404569398,1770304015462,917.77827383,0.00015495,2]
[404569399,1770304015501,917.77827383,0.00015495,2]
[404569400,1770304015536,917.77827383,0.00015495,2]
[404569401,1770304015576,917.77827383,0.00015495,2]
[404569402,1770304015618,917.77827383,0.00015495,2]
[404569403,1770304015659,917.77827383,0.00015495,2]
[404569404,1770304015699,917.77827383,0.00015495,2]
[404569405,1770304015732,917.77827383,0.00015495,2]
[404569406,1770304015765,917.77827383,0.00015495,2]
[404569407,1770304015797,917.77827383,0.00015495,2]
[404569408,1770304015839,30.16904777,0.00015495,2]
[404569409,1770304015867,887.60922606,0.00015495,2]
[404569410,1770304021747,300.0,0.00015495,2]
[404569412,1770304030834,330.85004908,0.00015396,2]
[404569413,1770304032627,151.0,0.00015493,2]
[404569414,1770304037548,200.0,0.00015496,2]
[404569415,1770304040649,502.94499964,0.00015496,2]
[404569416,1770304044837,500.0,0.00015496,2]
[404569417,1770304045501,500.0,0.00015496,2]
[404569418,1770304046117,500.0,0.00015496,2]
[404569420,1770304049274,500.0,0.00015496,2]
[404569421,1770304051102,151.0,0.00015496,2]
[404569422,1770304051584,500.0,0.00015496,2]
[404569423,1770304052224,500.0,0.00015496,2]
[404569424,1770304052750,500.0,0.00015496,2]
[404569425,1770304052844,500.0,0.00015496,2]
[404569426,1770304053394,151.0,0.00015496,2]
[404569427,1770304053469,500.0,0.00015496,2]
[404569428,1770304054219,151.0,0.00015496,2]
[404569429,1770304054277,500.0,0.00015496,2]
[404569430,1770304054687,151.0,0.00015496,2]
[404569431,1770304055114,500.0,0.00015496,2]
[404569432,1770304057648,-151.0,0.00015496,2]
[404569433,1770304057687,-500.0,0.00015496,2]
[404569434,1770304057719,-500.0,0.00015496,2]
[404569435,1770304057751,-151.0,0.00015496,2]
[404569436,1770304057782,-500.0,0.00015496,2]
[404569437,1770304057812,-151.0,0.00015496,2]
[404569438,1770304057847,-500.0,0.00015496,2]
[404569439,1770304057880,-151.0,0.00015496,2]
[404569440,1770304058260,-500.0,0.00015496,2]
[404569441,1770304058292,-151.0,0.00015496,2]
[404569443,1770304060888,-500.0,0.00015496,2]
[404569444,1770304060926,-151.0,0.00015496,2]
[404569445,1770304060956,-500.0,0.00015496,2]
[404569446,1770304060991,-151.0,0.00015496,2]
[404569447,1770304061028,-500.0,0.00015496,2]
[404569448,1770304061059,-500.0,0.00015496,2]
[404569449,1770304061639,-500.0,0.00015496,2]
[404569450,1770304063619,-500.0,0.00015496,2]
[404569451,1770304063659,-500.0,0.00015496,2]
[404569452,1770304064008,-7440.42022713,0.00015496,2]
[404569453,1770304064591,-10000.01,0.00015496,2]
[404569456,1770304099499,1971.77427634,0.00015396,2]
[404569458,1770304122357,389.30627106,0.00015396,2]
[404569460,1770304138148,236.93727872,0.00015396,2]
[404569461,1770304141607,300.0,0.00015495,2]
[404569462,1770304141764,300.0,0.00015495,2]
[404569463,1770304143159,6801.99217388,0.00015396,2]
[404569464,1770304143190,10000.01,0.00015396,2]
[404569465,1770304143219,10000.01,0.00015396,2]
[404569468,1770304201732,1190.39818059,0.00015296,2]
[404569469,1770304201892,300.0,0.00015395,2]
[404569472,1770304225676,866.03,0.00015136,2]
[404569484,1770304232386,-322.23155911,0.00015396,2]
[404569485,1770304232398,-1037.25,0.00015396,2]
[404569486,1770304232428,-88597.39622716,0.00015396,2]
[404569487,1770304232440,-328248.10127458,0.00015396,2]
[404569488,1770304232451,-1721.444185,0.00015396,2]
[404569514,1770304233061,-90918.78684434,0.00015396,2]
[404569515,1770304233073,-19496.56012286,0.00015396,2]
[404569516,1770304233085,-656.09435565,0.00015396,2]
[404569517,1770304233106,-1080.50670058,0.00015396,2]
[404569518,1770304233121,-1085.84254698,0.00015396,2]
[404569519,1770304233530,-295.423,0.00015396,2]
[404569522,1770304238365,-798.05749077,0.00015396,2]
[404569523,1770304238377,-3392.131428,0.00015396,2]
[404569524,1770304238390,-200637.27139109,0.00015396,2]
[404569526,1770304238400,-864.79727914,0.00015396,2]
[404569527,1770304238411,-151.0,0.00015493,2]
[404569528,1770304238421,-500.0,0.00015495,2]
[404569529,1770304238431,-160.0,0.00015496,2]
[404569530,1770304238442,-2729.2947,0.00015496,2]
[404569531,1770304238453,-506.14406425,0.00015497,2]
[404569532,1770304238465,-195.0,0.00015497,2]
[404569533,1770304238476,-209.46541111,0.00015498,2]
[404569534,1770304238486,-200.01,0.000155,2]
[404569535,1770304238497,-1190.39818056,0.00015585,2]
[404569536,1770304238508,-273.30525774,0.00015674,2]
[404569537,1770304238519,-160.12920976,0.00015674,2]
[404569538,1770304238530,-1971.77427626,0.00015674,2]
[404569539,1770304238540,-563.2870046,0.00015676,2]
[404569540,1770304238550,-150.99,0.00015754,2]
[404569541,1770304238568,-3186.13,0.00015754,2]
[404569542,1770304238579,-150.99,0.00015754,2]
[404569543,1770304238590,-3307.45,0.00015754,2]
[404569544,1770304238600,-864.79727908,0.00015754,2]
[404569545,1770304238610,-1190.39818056,0.00015875,2]
[404569546,1770304238621,-290.6,0.00015917,2]
[404569547,1770304238631,-1971.77427626,0.00015952,2]
[404569548,1770304238642,-500.0,0.00015955,3]
[404569549,1770304238653,-1000.0,0.00015981,2]
[404569550,1770304238663,-2980.38,0.00016111,2]
[404569551,1770304238674,-299.99,0.00016111,2]
[404569552,1770304238685,-864.79727908,0.00016111,2]
[404569553,1770304238696,-1000.0,0.00016135,2]
[404569554,1770304238707,-1190.39818056,0.00016164,2]
[404569555,1770304238719,-410.72,0.00016231,2]
[404569556,1770304238729,-1971.77427626,0.00016231,2]
[404569557,1770304238739,-485.0,0.00016309,2]
[404569558,1770304238750,-150.0,0.00016386,2]
[404569559,1770304238761,-152.62,0.00016428,2]
[404569560,1770304238771,-491.8656103,0.00016444,2]
[404569561,1770304238781,-166.66,0.0001645,2]
[404569562,1770304238791,-1190.39818056,0.00016453,2]
[404569564,1770304238801,-864.79727908,0.00016469,2]
[404569566,1770304238819,-1971.77427626,0.00016509,2]
[404569569,1770304238831,-1069.0,0.00016517,2]
[404569571,1770304238840,-955.69,0.00016573,2]
[404569573,1770304238850,-1069.0,0.00016577,2]
[404569575,1770304238859,-1000.0,0.00016579,2]
[404569576,1770304238868,-1069.0,0.00016627,2]
[404569578,1770304238878,-174.61919141,0.00016635,2]
[404569580,1770304238889,-578.20924308,0.00016635,2]
[404569582,1770304238898,-2000.0,0.00016635,2]
[404569584,1770304238907,-200.0,0.00016635,2]
[404569585,1770304238916,-209.40437684,0.00016635,2]
[404569586,1770304238925,-2000.0,0.00016635,2]
[404569587,1770304238935,-1500.0,0.00016635,2]
[404569588,1770304238944,-2000.0,0.00016635,2]
[404569589,1770304238953,-209.40437684,0.00016635,2]
[404569590,1770304238965,-277.35679052,0.00016635,2]
[404569591,1770304238975,-743.50770149,0.00016635,2]
[404569592,1770304238985,-322.6107,0.00016635,2]
[404569593,1770304238994,-721.12765535,0.00016635,2]
[404569594,1770304239003,-209.40437684,0.00016635,2]
[404569595,1770304239013,-1069.0,0.0001664,2]
[404569597,1770304239025,-236.93727872,0.00016648,2]
[404569599,1770304239035,-1765.77538104,0.00016648,2]
[404569601,1770304239045,-4659.90916786,0.00016648,2]
[404569603,1770304239058,-8220.63212878,0.00016648,2]
[404569604,1770304239068,-500.0,0.00016677,2]
[404569606,1770304239079,-217.15233878,0.0001669,2]
[404569609,1770304239089,-1069.0,0.00016708,2]
[404569610,1770304239098,-1190.39818056,0.00016743,2]
[404569612,1770304239109,-225.18697532,0.00016745,2]
[404569614,1770304239119,-1069.0,0.00016749,2]
[404569616,1770304239129,-1971.77427626,0.00016787,2]
[404569618,1770304239139,-233.51889341,0.000168,2]
[404569620,1770304239149,-864.79727908,0.00016827,2]
[404569622,1770304239159,-420.0,0.00016842,2]
[404569624,1770304239169,-242.15909246,0.00016855,2]
[404569626,1770304239179,-1000.0,0.00016867,2]
[404569628,1770304239188,-251.11897888,0.0001691,2]
[404569630,1770304239198,-1069.0,0.00016916,2]
[404569632,1770304239208,-260.4103811,0.00016965,2]
[404569634,1770304239217,-1722.72,0.0001697,2]
[404569636,1770304239227,-1234.0,0.00016978,2]
[404569638,1770304239237,-166.66,0.00016993,2]
[404569640,1770304239252,-500.0,0.00017,2]
[404569642,1770304239271,-270.0455652,0.0001702,2]
[404569644,1770304239281,-1190.39818056,0.00017032,2]
[404569646,1770304239291,-1069.0,0.00017035,2]
[404569648,1770304239301,-481.28561269,0.00017045,2]
[404569650,1770304239316,-600.0,0.00017045,2]
[404569652,1770304239325,-299.99,0.00017045,2]
[404569654,1770304239335,-300.0,0.00017045,2]
[404569656,1770304239344,-600.0,0.00017045,2]
[404569658,1770304239355,-195.0,0.00017045,2]
[404569660,1770304239366,-2500.0,0.00017045,2]
[404569662,1770304239378,-1971.77427626,0.00017065,2]
[404569664,1770304239392,-280.03725112,0.00017075,2]
[404569666,1770304239403,-563.2870046,0.00017126,2]
[404569668,1770304239413,-290.39862941,0.0001713,2]
[404569670,1770304239423,-8225.5422763,0.00017145,2]
[404569672,1770304239433,-181.08010149,0.00017183,2]
[404569673,1770304239443,-200.0,0.00017183,2]
[404569674,1770304239453,-217.15233878,0.00017183,2]
[404569675,1770304239463,-2000.0,0.00017183,2]
[404569676,1770304239473,-217.15233878,0.00017183,2]
[404569677,1770304239483,-425.02994426,0.00017183,2]
[404569678,1770304239493,-771.01748645,0.00017183,2]
[404569679,1770304239503,-864.79727908,0.00017185,2]
[404569680,1770304239513,-301.1433787,0.00017185,2]
[404569681,1770304239523,-1000.0,0.0001726,2]
[404569682,1770304239534,-1190.39818056,0.00017321,2]
[404569683,1770304239545,-1971.77427626,0.00017344,2]
[404569684,1770304239561,-955.69,0.00017401,2]
[404569685,1770304239572,-1271.0,0.00017497,2]
[404569686,1770304239582,-1205.0,0.00017515,2]
[404569687,1770304239593,-917.0,0.00017515,2]
[404569688,1770304239604,-1317.0,0.00017515,2]
[404569689,1770304239614,-2466.995,0.00017515,2]
[404569690,1770304239626,-3254.0,0.00017515,2]
[404569691,1770304239636,-1000.0,0.00017534,2]
[404569692,1770304239647,-166.66,0.00017536,2]
[404569693,1770304239657,-864.79727908,0.00017542,2]
[404569694,1770304239667,-1234.0,0.00017583,2]
[404569695,1770304239678,-2500.0,0.000176,2]
[404569696,1770304239688,-1234.0,0.00017613,2]
[404569697,1770304239698,-1971.77427626,0.00017622,2]
[404569698,1770304239708,-12297.57402094,0.00017648,2]